bitfinex-derivatives/quotes_BTCF0:USTF0_20260207
["timestamp","ask_amount","ask_price","bid_price","bid_amount"]
[1770464522536,0.014747,67860.0,67852.0,0.24271152]
[1770464523332,0.25097657,67870.0,67853.0,0.01475]
[1770464523333,0.014747,67866.0,67853.0,0.01475]
[1770464523532,0.014748,67864.0,67852.0,0.24271152]
[1770464524544,0.014748,67864.0,67852.0,0.25746152]
[1770464524740,0.014749,67860.0,67845.0,0.25135265]
[1770464524946,0.25097657,67858.0,67842.0,0.25135265]
[1770464525137,0.014749,67859.0,67842.0,0.25135265]
[1770464525642,0.014749,67859.0,67841.0,0.14612024]
[1770464525643,0.014748,67865.0,67849.0,0.25160192]
[1770464525838,0.014748,67863.0,67849.0,0.25160192]
[1770464526043,0.00012894,67864.0,67849.0,0.25160192]
[1770464526246,0.014749,67861.0,67849.0,0.25160192]
[1770464529343,0.01487694,67864.0,67849.0,0.25160192]
[1770464532537,0.014748,67862.0,67849.0,0.25160192]
[1770464532842,0.014749,67861.0,67849.0,0.25160192]
[1770464540445,0.01487694,67864.0,67849.0,0.26635292]
[1770464540646,0.26144691,67873.0,67849.0,0.26635292]
[1770464541046,0.014748,67865.0,67852.0,0.24574686]
[1770464541253,0.014749,67859.0,67847.0,0.24574686]
[1770464541441,0.26144691,67863.0,67847.0,0.24574686]
[1770464541647,5.012e-05,67862.0,67847.0,0.24574686]
[1770464542250,5.012e-05,67862.0,67847.0,0.26049786]
[1770464543350,0.01479812,67862.0,67847.0,0.26049786]
[1770464543949,5.012e-05,67862.0,67847.0,0.24574686]
[1770464544246,0.014752,67846.0,67836.0,0.42219765]
[1770464544557,0.014752,67846.0,67836.0,0.24574686]
[1770464544848,0.014752,67844.0,67830.0,0.24574686]
[1770464545350,0.014752,67844.0,67833.0,0.14485415]
[1770464545646,0.014753,67842.0,67830.0,0.24574686]
[1770464547444,0.01480212,67845.0,67830.0,0.24574686]
[1770464547746,0.26149703,67845.0,67830.0,0.23551921]
[1770464548646,0.014752,67844.0,67830.0,0.23551921]
[1770464549046,0.26149703,67845.0,67830.0,0.23551921]
[1770464549047,0.014753,67842.0,67830.0,0.23551921]
[1770464550650,0.014753,67840.0,67830.0,0.23551921]
[1770464551250,0.014753,67843.0,67830.0,0.23551921]
[1770464551453,0.014753,67841.0,67830.0,0.23551921]
[1770464554054,0.015753,67841.0,67830.0,0.23551921]
[1770464554556,0.014753,67839.0,67830.0,0.23551921]
[1770464554853,0.001,67841.0,67830.0,0.23551921]
[1770464555557,0.014753,67839.0,67830.0,0.23551921]
[1770464555858,0.014754,67837.0,67830.0,0.23551921]
[1770464556252,0.001,67841.0,67830.0,0.23551921]
[1770464556657,0.014752,67847.0,67830.0,0.23551921]
[1770464557058,0.014752,67847.0,67830.0,0.25027421]
[1770464557255,0.001,67841.0,67830.0,0.25027421]
[1770464558555,0.2673449,67858.0,67833.0,0.25930925]
[1770464558761,0.014751,67852.0,67839.0,0.25930925]
[1770464558954,0.01475,67853.0,67839.0,0.25930925]
[1770464560262,0.2673449,67870.0,67846.0,0.25930925]
[1770464561362,0.014749,67861.0,67846.0,0.25930925]
[1770464561959,0.014749,67859.0,67846.0,0.25930925]
[1770464563062,0.01475,67853.0,67846.0,0.25930925]
[1770464563263,0.014751,67851.0,67841.0,0.25930925]
[1770464563463,0.014752,67844.0,67828.0,0.04622629]
[1770464563661,0.014752,67844.0,67829.0,0.0316579]
[1770464565369,0.014752,67847.0,67831.0,0.04855761]
[1770464567768,0.2673449,67852.0,67831.0,0.04855761]
[1770464569272,0.014752,67844.0,67831.0,0.04855761]
[1770464569678,0.014753,67842.0,67831.0,0.04855761]
[1770464570074,0.014753,67842.0,67826.0,0.16564409]
[1770464570576,0.014753,67838.0,67826.0,0.15088809]
[1770464570777,0.014753,67838.0,67825.0,0.05285409]
[1770464571778,0.014753,67841.0,67826.0,0.05694854]
[1770464572175,0.014753,67839.0,67826.0,0.05694854]
[1770464572981,0.2673449,67842.0,67826.0,0.05694854]
[1770464573372,0.014755,67833.0,67826.0,0.05694854]
[1770464573577,0.014755,67831.0,67823.0,0.00011166]
[1770464573777,0.014755,67831.0,67814.0,0.17654771]
[1770464573778,0.014755,67830.0,67814.0,0.05802756]
[1770464574778,0.00011166,67829.0,67814.0,0.05802756]
[1770464574983,0.00011166,67829.0,67815.0,0.014758]
[1770464575184,0.00011166,67829.0,67818.0,0.06244102]
[1770464577376,0.014756,67828.0,67818.0,0.06244102]
[1770464578283,0.00011166,67829.0,67818.0,0.06244102]
[1770464579389,0.01486766,67829.0,67818.0,0.06244102]
[1770464579887,0.014756,67827.0,67818.0,0.06244102]
[1770464580489,0.014756,67827.0,67813.0,0.14759708]
[1770464580790,0.00011166,67829.0,67812.0,0.04934361]
[1770464580791,0.014757,67823.0,67812.0,0.04934361]
[1770464580986,0.014756,67826.0,67812.0,0.04934361]
[1770464581292,0.014756,67826.0,67812.0,0.04929361]
[1770464581891,0.2705541,67844.0,67820.0,0.05054158]
[1770464582089,0.014754,67838.0,67822.0,0.05054158]
[1770464582284,0.014754,67838.0,67823.0,0.014757]
[1770464582485,0.014754,67838.0,67824.0,0.05167595]
[1770464584286,0.014753,67842.0,67827.0,0.05549217]
[1770464584687,0.26978591,67841.0,67821.0,0.05620799]
[1770464584889,0.26978591,67835.0,67821.0,0.05620799]
[1770464585186,0.014753,67839.0,67822.0,0.05730025]
[1770464585493,0.014753,67839.0,67824.0,0.05730025]
[1770464587087,0.01475,67853.0,67830.0,0.06008325]
[1770464587294,0.26960946,67852.0,67830.0,0.06008325]
[1770464587494,0.014752,67843.0,67830.0,0.06008325]
[1770464588897,0.014752,67846.0,67830.0,0.06008325]
[1770464589484,0.014752,67846.0,67832.0,0.06232684]
[1770464590990,0.014752,67846.0,67834.0,0.06548584]
[1770464591699,0.014751,67849.0,67834.0,0.06548584]
[1770464591894,0.014747,67867.0,67849.0,0.06656203]
[1770464592089,0.014748,67865.0,67851.0,0.06656203]
[1770464592992,0.27271574,67867.0,67851.0,0.06656203]
[1770464592993,0.014748,67863.0,67851.0,0.06656203]
[1770464593195,0.27271574,67859.0,67841.0,0.014753]
[1770464593695,0.01475,67855.0,67840.0,0.014753]
[1770464593995,0.27271574,67856.0,67842.0,0.014752]
[1770464595295,0.27271574,67873.0,67843.0,0.07328979]
[1770464595502,0.28746174,67873.0,67855.0,0.07328979]
[1770464596197,0.27271574,67870.0,67855.0,0.07328979]
[1770464597492,0.014739,67905.0,67839.0,0.17642978]
[1770464597493,0.27271574,67864.0,67842.0,0.0721577]
[1770464597692,0.28746574,67856.0,67838.0,0.014753]
[1770464597897,0.27271574,67856.0,67840.0,0.014753]
[1770464598093,0.27271574,67856.0,67840.0,0.08700551]
[1770464598695,0.014749,67861.0,67846.0,0.014752]
[1770464598899,0.014749,67861.0,67846.0,0.08843694]
[1770464599094,0.014747,67867.0,67850.0,0.08932885]
[1770464599299,0.27271574,67868.0,67852.0,0.01475]
[1770464599499,0.27271574,67868.0,67854.0,0.01475]
[1770464599798,0.27271574,67879.0,67857.0,0.014749]
[1770464599996,0.28746074,67878.0,67855.0,0.07465736]
[1770464600203,0.28746074,67878.0,67861.0,0.014748]
[1770464600802,0.28746074,67878.0,67863.0,0.014748]
[1770464601901,0.27271574,67878.0,67863.0,0.014748]
[1770464602119,0.28486972,67889.0,67868.0,0.02990803]
[1770464603302,0.014743,67886.0,67871.0,0.014746]
[1770464604107,0.29961272,67889.0,67871.0,0.014746]
[1770464604407,0.28486972,67889.0,67868.0,0.02990803]
[1770464604705,0.014743,67888.0,67870.0,0.014746]
[1770464604908,0.014743,67888.0,67870.0,0.06550138]
[1770464608206,0.28486972,67889.0,67867.0,0.014747]
[1770464608515,0.014747,67870.0,67852.0,0.01475]
[1770464608702,0.29336559,67870.0,67854.0,0.01475]
[1770464609313,0.27861859,67870.0,67851.0,0.04924043]
[1770464609512,0.27861859,67870.0,67856.0,0.014749]
[1770464609710,0.014746,67875.0,67856.0,0.07003623]
[1770464609911,0.014746,67875.0,67857.0,0.05528723]
[1770464610214,0.014746,67873.0,67857.0,0.05528723]
[1770464613212,0.014747,67867.0,67857.0,0.05528723]
[1770464613413,0.014745,67879.0,67840.0,0.15213798]
[1770464613414,0.014749,67861.0,67844.0,0.06863979]
[1770464613614,0.014749,67859.0,67845.0,0.05388779]
[1770464614119,0.014748,67863.0,67848.0,0.014751]
[1770464614315,0.28008581,67865.0,67850.0,0.014751]
[1770464614622,0.28008581,67865.0,67847.0,0.07272259]
[1770464614623,0.014748,67864.0,67847.0,0.07272259]
[1770464615320,0.014748,67864.0,67848.0,0.0586999]
[1770464616020,0.014748,67862.0,67848.0,0.0586999]
[1770464616916,0.29483381,67865.0,67848.0,0.0586999]
[1770464617114,0.014748,67865.0,67850.0,0.05887103]
[1770464618015,0.29329009,67864.0,67845.0,0.05960936]
[1770464618417,0.014748,67863.0,67848.0,0.07505189]
[1770464618624,0.014747,67869.0,67852.0,0.07505089]
[1770464618811,0.014747,67867.0,67852.0,0.07505089]
[1770464619420,0.014747,67870.0,67855.0,0.07576314]
[1770464619614,0.014742,67890.0,67855.0,0.06101314]
[1770464619615,0.014745,67879.0,67855.0,0.06101314]
[1770464619922,0.014745,67879.0,67859.0,0.06105]
[1770464621424,0.014745,67879.0,67863.0,0.05926181]
[1770464622421,0.29329009,67893.0,67865.0,0.05995208]
[1770464622619,0.014744,67881.0,67869.0,0.05995208]
[1770464623325,0.29329009,67879.0,67862.0,0.05970123]
[1770464623626,0.29329009,67879.0,67856.0,0.05970123]
[1770464623821,0.014742,67889.0,67856.0,0.05970123]
[1770464623822,0.014743,67886.0,67857.0,0.014749]
[1770464624026,0.29329009,67876.0,67857.0,0.014749]
[1770464624527,0.29329009,67876.0,67857.0,0.07512215]
[1770464625227,0.29329009,67883.0,67857.0,0.07512215]
[1770464625427,0.014746,67875.0,67860.0,0.06263599]
[1770464627933,0.014745,67876.0,67861.0,0.07839246]
[1770464628832,0.014745,67879.0,67861.0,0.07839246]
[1770464629732,0.014744,67882.0,67864.0,0.06466221]
[1770464630035,0.014743,67885.0,67869.0,0.06466221]
[1770464630922,0.014743,67885.0,67871.0,0.0652974]
[1770464633436,0.29329009,67883.0,67864.0,0.11706146]
[1770464633735,0.29329009,67881.0,67863.0,0.06806825]
[1770464633923,0.014745,67876.0,67863.0,0.06806825]
[1770464637331,0.29329009,67879.0,67863.0,0.06806825]
[1770464637532,0.014746,67875.0,67863.0,0.06806825]
[1770464638838,0.014746,67874.0,67863.0,0.06806825]
[1770464640732,0.014745,67876.0,67863.0,0.06806825]
[1770464640937,0.014745,67876.0,67863.0,0.08281625]
[1770464642436,0.29329009,67876.0,67859.0,0.014749]
[1770464642838,0.29329009,67876.0,67859.0,0.08437445]
[1770464643338,0.29329009,67876.0,67859.0,0.06962545]
[1770464643936,0.014747,67869.0,67859.0,0.06962545]
[1770464646043,0.014747,67867.0,67859.0,0.06962545]
[1770464646636,0.014746,67875.0,67859.0,0.06962545]
[1770464646946,0.2957437,67867.0,67851.0,0.07166111]
[1770464648150,0.014748,67864.0,67851.0,0.07166111]
[1770464649858,0.014748,67862.0,67851.0,0.07166111]
[1770464650057,0.014749,67861.0,67851.0,0.07166111]
[1770464653359,0.014749,67861.0,67846.0,0.014752]
[1770464653360,0.28962471,67863.0,67845.0,0.07203191]
[1770464653562,0.01475,67856.0,67845.0,0.07203191]
[1770464654159,0.014749,67859.0,67845.0,0.07203191]
[1770464654462,0.014749,67859.0,67845.0,0.08678391]
[1770464655053,0.014746,67872.0,67856.0,0.01475]
[1770464655259,0.28962471,67877.0,67857.0,0.08472929]
[1770464655260,0.014747,67870.0,67857.0,0.08472929]
[1770464656257,0.014746,67873.0,67857.0,0.08472929]
[1770464657660,0.014746,67873.0,67856.0,0.01475]
[1770464657661,0.014745,67876.0,67859.0,0.09742035]
[1770464658559,0.014745,67876.0,67847.0,0.014751]
[1770464658560,0.014745,67876.0,67862.0,0.0830672]
[1770464659164,0.014746,67874.0,67862.0,0.0830672]
[1770464659866,0.014745,67877.0,67862.0,0.0830672]
[1770464660767,0.014745,67877.0,67862.0,0.0978152]
[1770464661158,0.014743,67887.0,67865.0,0.08405577]
[1770464661159,0.014745,67880.0,67865.0,0.08405577]
[1770464662565,0.014744,67883.0,67867.0,0.08483054]
[1770464663264,0.014744,67880.0,67867.0,0.08483054]
[1770464663662,0.014745,67878.0,67862.0,0.10203153]
[1770464663863,0.014744,67881.0,67867.0,0.08728353]
[1770464664167,0.014745,67879.0,67867.0,0.08728353]
[1770464666269,0.014745,67877.0,67867.0,0.08728353]
[1770464666765,0.28962471,67894.0,67873.0,0.08925515]
[1770464667766,0.28962471,67894.0,67875.0,0.08962443]
[1770464667972,0.014743,67886.0,67875.0,0.08962443]
[1770464668365,0.28962471,67906.0,67881.0,0.08996915]
[1770464668566,0.01474,67902.0,67886.0,0.08996915]
[1770464668771,0.01474,67900.0,67888.0,0.08870091]
[1770464669172,0.014739,67904.0,67888.0,0.08870091]
[1770464669472,0.014739,67904.0,67888.0,0.10344391]
[1770464669868,0.01474,67902.0,67888.0,0.10344391]
[1770464672271,0.01474,67902.0,67888.0,0.08870091]
[1770464672473,0.014743,67885.0,67875.0,0.09868101]
[1770464672671,0.30913504,67890.0,67867.0,0.014747]
[1770464672874,0.30913504,67890.0,67873.0,0.16406966]
[1770464673471,0.30913504,67890.0,67873.0,0.14932366]
[1770464673678,0.014744,67883.0,67873.0,0.14932366]
[1770464674278,0.014743,67886.0,67873.0,0.14932366]
[1770464674777,0.014743,67886.0,67873.0,0.15214762]
[1770464676081,0.014743,67886.0,67873.0,0.00282396]
[1770464676578,0.014743,67886.0,67874.0,0.14582807]
[1770464678581,0.014743,67886.0,67875.0,0.00445692]
[1770464678779,0.014743,67889.0,67875.0,0.00445692]
[1770464678984,0.014742,67892.0,67877.0,0.00425374]
[1770464679281,0.014742,67890.0,67877.0,0.00425374]
[1770464679671,0.32308665,67896.0,67881.0,0.00468076]
[1770464679875,0.30833697,67907.0,67888.0,0.00468076]
[1770464680479,0.30833697,67905.0,67883.0,0.014744]
[1770464681377,0.014741,67897.0,67883.0,0.014744]
[1770464681983,0.32293329,67897.0,67883.0,0.014744]
[1770464682581,0.014741,67895.0,67882.0,0.0050763]
[1770464683280,0.3081305,67881.0,67859.0,0.00685038]
[1770464683485,0.014744,67880.0,67867.0,0.15173496]
[1770464683888,0.014744,67880.0,67868.0,0.00687526]
[1770464684680,0.3081222,67887.0,67868.0,0.00687526]
[1770464684681,0.014745,67878.0,67868.0,0.00687526]
[1770464686392,0.014744,67881.0,67868.0,0.00687526]
[1770464686890,0.014744,67884.0,67868.0,0.00687526]
[1770464687387,0.30588608,67894.0,67872.0,0.01627212]
[1770464688188,0.014742,67890.0,67875.0,0.01664921]
[1770464689382,0.30588608,67894.0,67871.0,0.14638]
[1770464689691,0.01474,67901.0,67871.0,0.14638]
[1770464689692,0.014744,67884.0,67871.0,0.14638]
[1770464689880,0.014744,67882.0,67871.0,0.14638]
[1770464690786,0.014744,67880.0,67871.0,0.14638]
[1770464693693,0.3058146,67880.0,67864.0,0.1437558]
[1770464694397,0.014745,67877.0,67865.0,0.01884494]
[1770464694693,0.014744,67884.0,67872.0,0.01854531]
[1770464696294,0.30590681,67885.0,67871.0,6.2e-07]
[1770464696597,0.014742,67889.0,67860.0,0.01920048]
[1770464696598,0.014747,67868.0,67860.0,0.01920048]
[1770464696793,0.30589788,67870.0,67856.0,0.15037901]
[1770464697187,0.30589788,67867.0,67846.0,0.16490877]
[1770464697388,0.30589788,67867.0,67839.0,0.14394151]
[1770464697389,0.01475,67854.0,67840.0,0.01953669]
[1770464697795,0.014752,67847.0,67833.0,0.01955905]
[1770464697988,0.014752,67847.0,67820.0,0.03843464]
[1770464697989,0.014752,67847.0,67825.0,0.01955905]
[1770464698793,0.00011432,67846.0,67825.0,0.01955905]
[1770464700295,0.43856501,67884.0,67839.0,0.02057854]
[1770464700296,0.30797454,67883.0,67839.0,0.02057854]
[1770464700493,0.30797454,67877.0,67848.0,0.02057854]
[1770464700687,0.014744,67880.0,67850.0,0.02178517]
[1770464701094,0.30757233,67884.0,67853.0,0.02178517]
[1770464701291,0.30757233,67884.0,67856.0,0.014749]
[1770464701590,5.121e-05,67883.0,67866.0,0.02207966]
[1770464701789,0.014741,67896.0,67866.0,0.02207966]
[1770464702692,0.014741,67896.0,67869.0,0.02344853]
[1770464703096,0.014741,67896.0,67868.0,0.014747]
[1770464703097,0.30757233,67898.0,67871.0,0.02344853]
[1770464703798,0.014741,67897.0,67871.0,0.02344853]
[1770464704196,0.43856501,67925.0,67870.0,0.014746]
[1770464704197,0.30719497,67906.0,67881.0,0.02399909]
[1770464704400,0.30719497,67906.0,67887.0,0.02399909]
[1770464705699,0.014736,67920.0,67887.0,0.02399909]
[1770464705891,0.014736,67920.0,67896.0,0.02519408]
[1770464706090,0.30696864,67921.0,67896.0,0.02519408]
[1770464706292,0.014735,67922.0,67897.0,0.014741]
[1770464706599,0.014928,67956.0,67903.0,0.02554981]
[1770464706600,0.014734,67928.0,67903.0,0.02554981]
[1770464706800,0.014734,67928.0,67894.0,0.22053723]
[1770464706801,0.3080362,67928.0,67896.0,0.02234713]
[1770464706996,0.014735,67922.0,67897.0,0.02234713]
[1770464707198,0.014735,67922.0,67899.0,0.02234713]
[1770464707508,0.3080362,67924.0,67902.0,0.0225952]
[1770464707797,0.014728,67956.0,67907.0,0.02261126]
[1770464707798,0.30803084,67931.0,67907.0,0.02261126]
[1770464707999,0.014732,67935.0,67913.0,0.02261126]
[1770464708501,0.014733,67932.0,67913.0,0.02261126]
[1770464708700,0.014732,67937.0,67913.0,0.02261126]
[1770464708906,0.32128812,67937.0,67913.0,0.02261126]
[1770464709900,0.30655612,67937.0,67914.0,0.0277738]
[1770464710201,0.30655055,67929.0,67907.0,0.0277738]
[1770464710406,0.014734,67926.0,67907.0,0.0277738]
[1770464710911,0.014734,67930.0,67908.0,0.02731933]
[1770464711114,0.014732,67939.0,67916.0,0.02731933]
[1770464711318,0.30681396,67947.0,67927.0,0.02754867]
[1770464711617,0.30681396,67947.0,67918.0,0.02754867]
[1770464711818,0.014731,67941.0,67920.0,0.02756439]
[1770464712712,0.073637,67961.0,67915.0,0.014737]
[1770464712713,0.30718861,67937.0,67915.0,0.014737]
[1770464712912,0.32192061,67935.0,67912.0,0.02665049]
[1770464713119,0.32192161,67932.0,67912.0,0.02665049]
[1770464713312,0.014734,67929.0,67912.0,0.02665049]
[1770464713509,0.30718861,67919.0,67904.0,0.00011104]
[1770464713710,0.014732,67938.0,67888.0,0.02688771]
[1770464713711,0.30718363,67915.0,67888.0,0.02688771]
[1770464714021,0.014738,67910.0,67889.0,0.014742]
[1770464714619,0.014739,67907.0,67888.0,0.02688771]
[1770464714810,0.00011104,67906.0,67888.0,0.04162971]
[1770464715716,0.00011104,67906.0,67890.0,0.014742]
[1770464716510,0.00011104,67906.0,67888.0,0.02688771]
[1770464716911,0.00011104,67906.0,67889.0,0.014742]
[1770464717112,0.00011104,67906.0,67891.0,0.014742]
[1770464717620,0.00011104,67906.0,67888.0,0.02688771]
[1770464719114,0.014739,67905.0,67888.0,0.02688771]
[1770464719521,0.01474,67902.0,67881.0,0.014744]
[1770464720225,0.01474,67902.0,67884.0,0.014743]
[1770464720428,0.30488913,67905.0,67887.0,0.014743]
[1770464721722,0.01474,67902.0,67885.0,0.03543599]
[1770464722319,0.30488913,67905.0,67885.0,0.05017899]
[1770464723029,0.014739,67904.0,67885.0,0.05017899]
[1770464723219,0.3054533,67903.0,67880.0,0.03430439]
[1770464723817,0.30544873,67900.0,67876.0,0.014745]
[1770464724222,0.30544873,67898.0,67876.0,0.014745]
[1770464724417,0.014741,67896.0,67876.0,0.014745]
[1770464725525,0.00011104,67906.0,67877.0,0.03158603]
[1770464725727,0.30647803,67914.0,67892.0,0.014742]
[1770464726420,0.014738,67910.0,67891.0,0.03159871]
[1770464727126,0.014738,67910.0,67891.0,0.04634071]
[1770464727326,0.014737,67913.0,67895.0,0.014741]
[1770464728330,0.014737,67916.0,67898.0,0.04747772]
[1770464728522,0.014737,67916.0,67899.0,0.03273772]
[1770464728721,0.30579299,67931.0,67901.0,0.0341853]
[1770464729032,0.014734,67927.0,67911.0,0.0341853]
[1770464729233,0.014734,67930.0,67911.0,0.0341853]
[1770464729430,0.014734,67928.0,67911.0,0.0341853]
[1770464729927,0.30578892,67939.0,67911.0,0.0341853]
[1770464730128,0.014731,67944.0,67923.0,0.03436845]
[1770464730430,0.30578892,67947.0,67923.0,0.03436845]
[1770464730431,0.014731,67940.0,67923.0,0.03436845]
[1770464730828,0.014731,67943.0,67925.0,0.014734]
[1770464732028,0.014731,67943.0,67923.0,0.03436845]
[1770464733736,0.01473,67946.0,67926.0,0.014734]
[1770464733928,0.014731,67943.0,67923.0,0.04910345]
[1770464734131,0.014731,67941.0,67923.0,0.04910345]
[1770464734629,0.30407871,67940.0,67915.0,0.04031157]
[1770464734833,0.014728,67958.0,67916.0,0.014737]
[1770464734834,0.30407871,67933.0,67916.0,0.014737]
[1770464735231,0.014734,67930.0,67908.0,0.04046587]
[1770464735437,0.014734,67930.0,67912.0,0.014737]
[1770464736235,0.014734,67930.0,67884.0,0.44138271]
[1770464736236,0.30407476,67934.0,67903.0,0.04062936]
[1770464736531,0.30407476,67934.0,67899.0,0.18997282]
[1770464736532,0.0199,67906.0,67905.0,0.04087515]
[1770464736737,0.014734,67930.0,67910.0,0.014738]
[1770464736935,0.014734,67928.0,67910.0,0.014738]
[1770464737135,0.30356027,67940.0,67912.0,0.05730184]
[1770464737332,0.014732,67936.0,67916.0,0.014736]
[1770464737637,0.014732,67939.0,67922.0,0.04256484]
[1770464741031,0.014732,67937.0,67922.0,0.04256484]
[1770464741341,0.014733,67933.0,67915.0,0.014737]
[1770464741732,0.014736,67918.0,67896.0,0.07192033]
[1770464741932,0.299022,67917.0,67896.0,0.07192033]
[1770464742232,0.014737,67914.0,67898.0,0.01474]
[1770464742434,0.313758,67917.0,67898.0,0.01474]
[1770464742737,0.30635196,67914.0,67896.0,0.05717933]
[1770464742929,0.30635196,67914.0,67892.0,0.014742]
[1770464743341,0.30635196,67908.0,67886.0,0.03545227]
[1770464743530,0.014741,67896.0,67878.0,0.03545227]
[1770464743731,0.32108894,67899.0,67878.0,0.03545227]
[1770464743941,0.30634894,67896.0,67877.0,0.14607208]
[1770464744134,0.30634894,67903.0,67878.0,0.03558915]
[1770464744440,0.01474,67898.0,67878.0,0.03558915]
[1770464744833,0.01474,67901.0,67880.0,0.0489356]
[1770464746043,0.01474,67899.0,67880.0,0.0341916]
[1770464746737,0.30634894,67903.0,67872.0,0.03576991]
[1770464746937,0.30637158,67900.0,67877.0,0.14643202]
[1770464747343,0.30637158,67897.0,67877.0,0.14643202]
[1770464747729,0.32111078,67892.0,67877.0,0.14643202]
[1770464747933,0.30636878,67892.0,67870.0,0.14677974]
[1770464748138,0.30636878,67890.0,67870.0,0.14677974]
[1770464748339,0.01474,67899.0,67870.0,0.14677974]
[1770464748340,0.30636878,67888.0,67870.0,0.14677974]
[1770464748737,0.014746,67873.0,67855.0,0.01475]
[1770464748942,0.32017744,67877.0,67855.0,0.01475]
[1770464749137,0.014746,67875.0,67855.0,0.01475]
[1770464749338,0.014746,67873.0,67853.0,0.03882683]
[1770464749640,0.014746,67873.0,67854.0,0.01475]
[1770464749944,0.014746,67873.0,67853.0,0.03882683]
[1770464749945,0.014746,67871.0,67858.0,0.14651125]
[1770464750532,0.32016974,67871.0,67851.0,0.20059835]
[1770464751440,0.30542374,67871.0,67853.0,0.01475]
[1770464751639,0.00014376,67872.0,67853.0,0.05663428]
[1770464754046,0.00014376,67872.0,67856.0,0.04148087]
[1770464755144,0.00014376,67872.0,67857.0,0.04022516]
[1770464755350,0.014744,67883.0,67859.0,0.0403243]
[1770464755748,0.30577712,67887.0,67866.0,0.04033135]
[1770464756056,0.30577712,67887.0,67867.0,0.014747]
[1770464757746,0.30577712,67887.0,67869.0,0.014747]
[1770464758152,0.30577712,67887.0,67869.0,0.05828499]
[1770464758740,0.014742,67889.0,67872.0,0.014746]
[1770464759145,0.014742,67889.0,67872.0,0.06132225]
[1770464759348,0.30378875,67902.0,67877.0,0.04666742]
[1770464759659,0.01474,67900.0,67879.0,0.014744]
[1770464760448,0.01474,67900.0,67881.0,0.014744]
[1770464760648,0.3185264,67900.0,67881.0,0.014744]
[1770464761848,0.014741,67898.0,67881.0,0.014744]
[1770464762454,0.31821641,67898.0,67878.0,0.014745]
[1770464762755,0.31821641,67895.0,67875.0,0.014745]
[1770464762956,0.31821641,67895.0,67877.0,0.014745]
[1770464763356,0.31841525,67888.0,67870.0,0.06261546]
[1770464763659,0.31841525,67888.0,67870.0,0.014746]
[1770464764251,0.30367009,67882.0,67863.0,0.014748]
[1770464764649,0.014745,67879.0,67862.0,0.04736252]
[1770464765550,0.014745,67877.0,67862.0,0.04736252]
[1770464765756,0.30288036,67879.0,67859.0,0.014749]
[1770464766158,0.30288036,67879.0,67861.0,0.014748]
[1770464768551,0.014741,67897.0,67865.0,0.06130821]
[1770464768552,0.014744,67883.0,67865.0,0.06130821]
[1770464769660,0.014741,67897.0,67858.0,0.1504965]
[1770464769661,0.30538287,67881.0,67862.0,0.014748]
[1770464769850,0.30538287,67878.0,67859.0,0.014749]
[1770464771754,0.30538287,67878.0,67861.0,0.014748]
[1770464771951,0.30538287,67893.0,67870.0,0.04645961]
[1770464772456,0.32012487,67893.0,67870.0,0.04645961]
[1770464773258,0.014742,67891.0,67874.0,0.014745]
[1770464774255,0.30538287,67893.0,67871.0,0.014746]
[1770464774457,0.30538287,67890.0,67870.0,0.16354833]
[1770464774752,0.014743,67886.0,67870.0,0.16354833]
[1770464774960,0.30538287,67890.0,67871.0,0.04605481]
[1770464775549,0.30538287,67890.0,67876.0,0.014745]
[1770464776060,0.30538287,67890.0,67871.0,0.04605481]
[1770464776257,0.30538287,67890.0,67870.0,0.11708872]
[1770464776958,0.30538287,67890.0,67871.0,0.11708872]
[1770464777158,0.014743,67886.0,67871.0,0.014746]
[1770464777360,0.32012587,67889.0,67871.0,0.13183472]
[1770464778560,0.014738,67911.0,67868.0,0.17523282]
[1770464778561,0.30538287,67896.0,67878.0,0.04813015]
[1770464779462,0.01474,67900.0,67880.0,0.04771098]
[1770464779661,0.01474,67900.0,67884.0,0.014743]
[1770464779965,0.073679,67922.0,67874.0,0.22053723]
[1770464779966,0.014736,67918.0,67898.0,0.01474]
[1770464780466,0.014737,67916.0,67898.0,0.01474]
[1770464780663,0.014738,67910.0,67894.0,0.11758126]
[1770464780962,0.014738,67910.0,67893.0,0.11758126]
[1770464781165,0.30538287,67912.0,67896.0,0.014741]
[1770464781367,0.30538287,67912.0,67893.0,0.11758126]
[1770464781663,0.30538287,67910.0,67893.0,0.11758126]
[1770464782069,0.30538287,67908.0,67889.0,0.13232326]
[1770464782265,0.30538287,67908.0,67889.0,0.014742]
[1770464782767,0.30538287,67906.0,67889.0,0.014742]
[1770464783565,0.30538287,67906.0,67883.0,0.2449]
[1770464783566,0.30538287,67906.0,67891.0,0.014742]
[1770464784066,0.30538287,67903.0,67885.0,0.014743]
[1770464784262,0.30538287,67897.0,67883.0,0.11758126]
[1770464784454,0.014738,67911.0,67875.0,0.11758126]
[1770464784455,0.30538287,67894.0,67875.0,0.11758126]
[1770464784771,0.30538287,67894.0,67873.0,0.11758126]
[1770464785268,0.30538287,67894.0,67872.0,0.13232726]
[1770464785571,0.31040273,67889.0,67872.0,0.13232726]
[1770464786671,0.31040273,67889.0,67871.0,0.11758126]
[1770464786859,0.31040273,67889.0,67870.0,0.11758126]
[1770464787055,0.43856501,67926.0,67892.0,0.02844387]
[1770464787056,0.014735,67924.0,67892.0,0.02844387]
[1770464787366,0.30755549,67923.0,67896.0,0.02848614]
[1770464787560,0.30755549,67923.0,67897.0,0.03148614]
[1770464787758,0.30755549,67923.0,67909.0,0.014738]
[1770464788669,0.30755549,67923.0,67906.0,0.014739]
[1770464790069,0.30755549,67923.0,67910.0,0.014738]
[1770464792671,0.30755549,67923.0,67912.0,0.014737]
[1770464794372,0.30755549,67923.0,67897.0,0.03148614]
[1770464794672,0.32476867,67921.0,67894.0,0.014741]
[1770464794869,0.32476867,67919.0,67894.0,0.014741]
[1770464795058,0.32476867,67919.0,67902.0,0.014739]
[1770464796867,0.32476867,67919.0,67891.0,0.014742]
[1770464796868,0.014738,67910.0,67884.0,0.11758126]
[1770464797072,0.32031803,67907.0,67880.0,0.11758126]
[1770464797372,0.32031803,67907.0,67889.0,0.014742]
[1770464798569,0.32031796,67905.0,67889.0,0.014742]
[1770464801474,0.3220727,67924.0,67883.0,0.11769783]
[1770464801778,0.3220727,67924.0,67892.0,0.014742]
[1770464801779,0.33681069,67910.0,67892.0,0.014742]
[1770464802473,0.33681069,67908.0,67892.0,0.014742]
[1770464802671,0.32216385,67930.0,67900.0,0.11758126]
[1770464802870,0.32216385,67929.0,67915.0,0.014737]